[Event "Titled Tuesday Blitz May 16 Late 2023"]
[White "Manukyan, Sargis A."]
[Black "Mikayel99"]
[WhiteFideId "13303970"]
[WhiteElo "2187"]
[BlackElo "2309"]
[Result "1-0"]
[Round "01"]
[TimeControl "180+2"]
[Date "2023.05.16"]
[WhiteClock "0:00:34"]
[BlackClock "0:00:00"]

1. d4 {[%clk 0:02:58]}  Nf6 {[%clk 0:02:59]} 2. c4 {[%clk 0:02:58]}  e6 {[%clk 0:02:59]} 3. Nc3 {[%clk 0:02:56]}  Bb4 {[%clk 0:02:59]} 4. a3 {[%clk 0:02:56]}  Bxc3+ {[%clk 0:02:58]} 5. bxc3 {[%clk 0:02:57]}  c5 {[%clk 0:02:59]} 6. e3 {[%clk 0:02:57]}  d6 {[%clk 0:02:49]} 7. Bd3 {[%clk 0:02:55]}  b6 {[%clk 0:02:49]} 8. Ne2 {[%clk 0:02:53]}  Nc6 {[%clk 0:02:47]} 9. O-O {[%clk 0:02:51]}  Na5 {[%clk 0:02:44]} 10. e4 {[%clk 0:02:49]}  Ba6 {[%clk 0:02:38]} 11. f4 {[%clk 0:02:48]}  Qc7 {[%clk 0:02:29]} 12. e5 {[%clk 0:02:43]}  Nd7 {[%clk 0:02:27]} 13. f5 {[%clk 0:02:13]}  O-O-O {[%clk 0:02:15]} 14. fxe6 {[%clk 0:02:12]}  fxe6 {[%clk 0:02:16]} 15. exd6 {[%clk 0:02:12]}  Qxd6 {[%clk 0:02:12]} 16. Bf4 {[%clk 0:02:06]}  Qe7 {[%clk 0:02:07]} 17. Ng3 {[%clk 0:01:56]}  Nf6 {[%clk 0:01:38]} 18. Be5 {[%clk 0:01:44]}  Bxc4 {[%clk 0:01:29]} 19. Bxc4 {[%clk 0:01:33]}  Nxc4 {[%clk 0:01:30]} 20. Qf3 {[%clk 0:01:32]}  Qb7 {[%clk 0:01:02]} 21. Bxf6 {[%clk 0:01:31]}  Qxf3 {[%clk 0:01:00]} 22. Rxf3 {[%clk 0:01:32]}  gxf6 {[%clk 0:01:01]} 23. dxc5 {[%clk 0:01:32]}  f5 {[%clk 0:00:55]} 24. cxb6 {[%clk 0:01:31]}  axb6 {[%clk 0:00:56]} 25. a4 {[%clk 0:01:29]}  Kc7 {[%clk 0:00:49]} 26. Rf4 {[%clk 0:01:26]}  Na5 {[%clk 0:00:46]} 27. Re1 {[%clk 0:01:24]}  Rd6 {[%clk 0:00:43]} 28. Nh5 {[%clk 0:01:19]}  Nb3 {[%clk 0:00:31]} 29. Rc4+ {[%clk 0:01:11]}  Kd7 {[%clk 0:00:26]} 30. Nf4 {[%clk 0:01:08]}  Re8 {[%clk 0:00:17]} 31. Nh5 {[%clk 0:00:57]}  Nd2 {[%clk 0:00:14]} 32. Nf6+ {[%clk 0:00:52]}  Ke7 {[%clk 0:00:13]} 33. Nxe8 {[%clk 0:00:52]}  Nxc4 {[%clk 0:00:14]} 34. Nxd6 {[%clk 0:00:53]}  Kxd6 {[%clk 0:00:15]} 35. Rb1 {[%clk 0:00:52]}  e5 {[%clk 0:00:15]} 36. Rb4 {[%clk 0:00:51]}  Kc5 {[%clk 0:00:15]} 37. Rb5+ {[%clk 0:00:51]}  Kc6 {[%clk 0:00:15]} 38. Kf2 {[%clk 0:00:51]}  e4 {[%clk 0:00:15]} 39. Rxf5 {[%clk 0:00:50]}  Kd6 {[%clk 0:00:13]} 40. Rh5 {[%clk 0:00:49]}  Nb2 {[%clk 0:00:13]} 41. Rh6+ {[%clk 0:00:48]}  Kc5 {[%clk 0:00:13]} 42. Rh5+ {[%clk 0:00:47]}  Kc4 {[%clk 0:00:13]} 43. a5 {[%clk 0:00:48]}  bxa5 {[%clk 0:00:12]} 44. Rxa5 {[%clk 0:00:48]}  Kxc3 {[%clk 0:00:13]} 45. Ra3+ {[%clk 0:00:41]}  Kd4 {[%clk 0:00:09]} 46. Ke2 {[%clk 0:00:40]}  h5 {[%clk 0:00:04]} 47. Ra5 {[%clk 0:00:38]}  Nd3 {[%clk 0:00:04]} 48. g3 {[%clk 0:00:36]}  Nc1+ {[%clk 0:00:03]} 49. Kd1 {[%clk 0:00:35]}  Nd3 {[%clk 0:00:01]} 50. Rxh5 {[%clk 0:00:35]}  e3 {[%clk 0:00:01]} 51. Rh4+ {[%clk 0:00:34]}  Ke5 {[%clk 0:00:01]} 52. Ke2 {[%clk 0:00:34]}  Nc5 {[%clk 0:00:01]} 53. Kxe3 {[%clk 0:00:34]}  Kf5 {[%clk 0:00:00]} 54. Rh5+ {[%clk 0:00:34]} 1-0


[Site "https://www.chess.com"]

[Event "Titled Tuesday Blitz May 16 Late 2023"]
[White "Smiechu"]
[Black "chess123456s"]
[WhiteElo "2292"]
[BlackElo "2606"]
[Result "0-1"]
[Round "01"]
[TimeControl "180+2"]
[Date "2023.05.16"]
[WhiteClock "0:00:05"]
[BlackClock "0:00:12"]

1. e4 {[%clk 0:02:59]}  e5 {[%clk 0:02:59]} 2. Nf3 {[%clk 0:02:58]}  Nc6 {[%clk 0:02:59]} 3. Bb5 {[%clk 0:02:58]}  a6 {[%clk 0:03:00]} 4. Ba4 {[%clk 0:02:58]}  Nf6 {[%clk 0:03:00]} 5. Qe2 {[%clk 0:02:59]}  Be7 {[%clk 0:02:52]} 6. c3 {[%clk 0:02:58]}  b5 {[%clk 0:02:51]} 7. Bb3 {[%clk 0:02:58]}  O-O {[%clk 0:02:45]} 8. O-O {[%clk 0:02:58]}  d5 {[%clk 0:02:45]} 9. d3 {[%clk 0:02:57]}  Re8 {[%clk 0:02:41]} 10. Bg5 {[%clk 0:02:55]}  Be6 {[%clk 0:02:32]} 11. Rd1 {[%clk 0:02:53]}  h6 {[%clk 0:02:29]} 12. Bxf6 {[%clk 0:02:52]}  Bxf6 {[%clk 0:02:30]} 13. Nbd2 {[%clk 0:02:47]}  Na5 {[%clk 0:02:25]} 14. Bc2 {[%clk 0:02:37]}  c5 {[%clk 0:02:23]} 15. exd5 {[%clk 0:02:30]}  Bxd5 {[%clk 0:02:17]} 16. Ne4 {[%clk 0:02:30]}  Nc6 {[%clk 0:02:06]} 17. Nxc5 {[%clk 0:02:22]}  Be7 {[%clk 0:01:44]} 18. b4 {[%clk 0:02:13]}  Bxc5 {[%clk 0:01:21]} 19. bxc5 {[%clk 0:02:13]}  Qa5 {[%clk 0:01:21]} 20. Qd2 {[%clk 0:01:59]}  Bxf3 {[%clk 0:01:18]} 21. gxf3 {[%clk 0:01:58]}  Rad8 {[%clk 0:01:16]} 22. Bb3 {[%clk 0:01:35]}  Qa3 {[%clk 0:01:11]} 23. Qe3 {[%clk 0:01:33]}  Na5 {[%clk 0:00:56]} 24. Rab1 {[%clk 0:01:17]}  Rc8 {[%clk 0:00:44]} 25. Kh1 {[%clk 0:00:56]}  Qxc5 {[%clk 0:00:43]} 26. Qe4 {[%clk 0:00:56]}  Qxc3 {[%clk 0:00:38]} 27. Rg1 {[%clk 0:00:55]}  Nxb3 {[%clk 0:00:36]} 28. axb3 {[%clk 0:00:45]}  Qd4 {[%clk 0:00:36]} 29. Qf5 {[%clk 0:00:41]}  Qf4 {[%clk 0:00:26]} 30. Qh3 {[%clk 0:00:37]}  Rc2 {[%clk 0:00:23]} 31. Rg4 {[%clk 0:00:36]}  Qf6 {[%clk 0:00:23]} 32. Rbg1 {[%clk 0:00:36]}  g6 {[%clk 0:00:20]} 33. Rh4 {[%clk 0:00:19]}  Rxf2 {[%clk 0:00:19]} 34. Rg3 {[%clk 0:00:18]}  Qc6 {[%clk 0:00:12]} 35. Rxh6 {[%clk 0:00:17]}  Qc1+ {[%clk 0:00:12]} 36. Rg1 {[%clk 0:00:17]}  Qc6 {[%clk 0:00:08]} 37. Rh8+ {[%clk 0:00:12]}  Kg7 {[%clk 0:00:08]} 38. Rxe8 {[%clk 0:00:09]}  Qxe8 {[%clk 0:00:07]} 39. Qg3 {[%clk 0:00:09]}  Rd2 {[%clk 0:00:07]} 40. Re1 {[%clk 0:00:09]}  Rxd3 {[%clk 0:00:07]} 41. Rxe5 {[%clk 0:00:09]}  Qc6 {[%clk 0:00:08]} 42. Kg2 {[%clk 0:00:07]}  Qc2+ {[%clk 0:00:07]} 43. Kh3 {[%clk 0:00:08]}  Rd6 {[%clk 0:00:08]} 44. Qf4 {[%clk 0:00:07]}  Qc8+ {[%clk 0:00:08]} 45. Kg3 {[%clk 0:00:07]}  Rf6 {[%clk 0:00:08]} 46. Qe4 {[%clk 0:00:07]}  Qh8 {[%clk 0:00:08]} 47. Qd4 {[%clk 0:00:07]}  Qh6 {[%clk 0:00:09]} 48. Re4 {[%clk 0:00:07]}  Qg5+ {[%clk 0:00:09]} 49. Rg4 {[%clk 0:00:06]}  Qf5 {[%clk 0:00:09]} 50. Rf4 {[%clk 0:00:06]}  Qxf4+ {[%clk 0:00:10]} 51. Qxf4 {[%clk 0:00:06]}  Rxf4 {[%clk 0:00:11]} 52. Kxf4 {[%clk 0:00:07]}  a5 {[%clk 0:00:11]} 53. Ke4 {[%clk 0:00:07]}  a4 {[%clk 0:00:12]} 54. b4 {[%clk 0:00:05]}  Kf6 {[%clk 0:00:12]} 0-1


[Site "https://www.chess.com"]

[Event "Titled Tuesday Blitz May 16 Late 2023"]
[White "Tarlabasi, Emirhan"]
[Black "Bashkansky, Ethan"]
[WhiteFideId "6350275"]
[BlackFideId "2071533"]
[WhiteElo "2200"]
[BlackElo "2286"]
[Result "1-0"]
[Round "01"]
[TimeControl "180+2"]
[Date "2023.05.16"]
[WhiteClock "0:00:08"]
[BlackClock "0:00:05"]

1. d4 {[%clk 0:02:59]}  f5 {[%clk 0:02:56]} 2. g4 {[%clk 0:02:57]}  fxg4 {[%clk 0:02:55]} 3. e4 {[%clk 0:02:56]}  d5 {[%clk 0:02:55]} 4. e5 {[%clk 0:02:57]}  Nc6 {[%clk 0:02:54]} 5. c3 {[%clk 0:02:57]}  Bf5 {[%clk 0:02:52]} 6. Ne2 {[%clk 0:02:56]}  Qd7 {[%clk 0:02:51]} 7. Ng3 {[%clk 0:02:57]}  g6 {[%clk 0:02:37]} 8. Bg2 {[%clk 0:02:52]}  O-O-O {[%clk 0:02:28]} 9. Nd2 {[%clk 0:02:43]}  Kb8 {[%clk 0:02:19]} 10. Ndf1 {[%clk 0:02:42]}  h5 {[%clk 0:02:16]} 11. Bg5 {[%clk 0:02:33]}  Nh6 {[%clk 0:02:06]} 12. Ne3 {[%clk 0:02:30]}  Nf7 {[%clk 0:01:59]} 13. Bf4 {[%clk 0:02:11]}  e6 {[%clk 0:01:53]} 14. Ngxf5 {[%clk 0:02:12]}  gxf5 {[%clk 0:01:52]} 15. b4 {[%clk 0:02:06]}  h4 {[%clk 0:01:49]} 16. h3 {[%clk 0:02:04]}  Bh6 {[%clk 0:01:42]} 17. Bxh6 {[%clk 0:02:02]}  Nxh6 {[%clk 0:01:38]} 18. hxg4 {[%clk 0:02:02]}  fxg4 {[%clk 0:01:17]} 19. Rxh4 {[%clk 0:02:00]}  Nf5 {[%clk 0:01:14]} 20. Rxg4 {[%clk 0:01:45]}  Qh7 {[%clk 0:01:04]} 21. Qe2 {[%clk 0:01:25]}  Rdg8 {[%clk 0:00:46]} 22. Kd2 {[%clk 0:01:03]}  Rxg4 {[%clk 0:00:24]} 23. Qxg4 {[%clk 0:00:51]}  Nxe3 {[%clk 0:00:24]} 24. fxe3 {[%clk 0:00:50]}  Rg8 {[%clk 0:00:24]} 25. Qh3 {[%clk 0:00:44]}  Qg6 {[%clk 0:00:14]} 26. Bf3 {[%clk 0:00:42]}  Ne7 {[%clk 0:00:13]} 27. Be2 {[%clk 0:00:38]}  c6 {[%clk 0:00:12]} 28. Rf1 {[%clk 0:00:32]}  Nf5 {[%clk 0:00:11]} 29. Bd3 {[%clk 0:00:20]}  Qg5 {[%clk 0:00:11]} 30. Bxf5 {[%clk 0:00:19]}  exf5 {[%clk 0:00:11]} 31. Qxf5 {[%clk 0:00:19]}  Qxf5 {[%clk 0:00:11]} 32. Rxf5 {[%clk 0:00:19]}  Rg2+ {[%clk 0:00:11]} 33. Kd3 {[%clk 0:00:20]}  Rxa2 {[%clk 0:00:12]} 34. Rf8+ {[%clk 0:00:18]}  Kc7 {[%clk 0:00:13]} 35. Rf7+ {[%clk 0:00:19]}  Kc8 {[%clk 0:00:13]} 36. e6 {[%clk 0:00:18]}  b5 {[%clk 0:00:13]} 37. e4 {[%clk 0:00:11]}  dxe4+ {[%clk 0:00:12]} 38. Kxe4 {[%clk 0:00:12]}  Kd8 {[%clk 0:00:13]} 39. Ke5 {[%clk 0:00:11]}  Ke8 {[%clk 0:00:08]} 40. Kd6 {[%clk 0:00:11]}  Re2 {[%clk 0:00:08]} 41. Rxa7 {[%clk 0:00:11]}  Kf8 {[%clk 0:00:07]} 42. Ra8+ {[%clk 0:00:09]}  Kg7 {[%clk 0:00:08]} 43. Kd7 {[%clk 0:00:09]}  Kf6 {[%clk 0:00:08]} 44. Rf8+ {[%clk 0:00:08]}  Kg7 {[%clk 0:00:09]} 45. Rf3 {[%clk 0:00:09]}  Re4 {[%clk 0:00:05]} 46. e7 {[%clk 0:00:08]}  Re3 {[%clk 0:00:05]} 47. Rxe3 {[%clk 0:00:08]} 1-0


[Site "https://www.chess.com"]

[Event "Titled Tuesday Blitz May 16 Late 2023"]
[White "lluiss"]
[Black "Fishbein, Alexander"]
[BlackFideId "2000377"]
[WhiteElo "2278"]
[BlackElo "2415"]
[Result "0-1"]
[Round "01"]
[TimeControl "180+2"]
[Date "2023.05.16"]
[WhiteClock "0:00:24"]
[BlackClock "0:02:13"]

1. Nf3 {[%clk 0:02:59]}  Nf6 {[%clk 0:02:59]} 2. c4 {[%clk 0:02:59]}  g6 {[%clk 0:02:58]} 3. g3 {[%clk 0:02:57]}  Bg7 {[%clk 0:02:58]} 4. Bg2 {[%clk 0:02:58]}  O-O {[%clk 0:02:59]} 5. O-O {[%clk 0:02:58]}  d6 {[%clk 0:02:59]} 6. d4 {[%clk 0:02:58]}  Nc6 {[%clk 0:03:00]} 7. Nc3 {[%clk 0:02:57]}  e5 {[%clk 0:03:00]} 8. dxe5 {[%clk 0:02:54]}  dxe5 {[%clk 0:03:01]} 9. Bg5 {[%clk 0:02:54]}  h6 {[%clk 0:03:01]} 10. Qxd8 {[%clk 0:02:46]}  Rxd8 {[%clk 0:03:02]} 11. Bxf6 {[%clk 0:02:45]}  Bxf6 {[%clk 0:03:02]} 12. Nd5 {[%clk 0:02:45]}  Kg7 {[%clk 0:03:02]} 13. Nxc7 {[%clk 0:02:43]}  Rb8 {[%clk 0:03:02]} 14. Nd5 {[%clk 0:02:43]}  e4 {[%clk 0:03:01]} 15. Nd2 {[%clk 0:02:36]}  Bxb2 {[%clk 0:03:00]} 16. Rab1 {[%clk 0:02:35]}  Ba3 {[%clk 0:03:00]} 17. Nxe4 {[%clk 0:02:32]}  Be6 {[%clk 0:02:56]} 18. Rfd1 {[%clk 0:02:20]}  Ne5 {[%clk 0:02:54]} 19. Nf4 {[%clk 0:02:05]}  Rxd1+ {[%clk 0:02:48]} 20. Rxd1 {[%clk 0:02:04]}  Bxc4 {[%clk 0:02:49]} 21. Rd4 {[%clk 0:01:36]}  b5 {[%clk 0:02:33]} 22. Nd5 {[%clk 0:01:00]}  Rd8 {[%clk 0:02:28]} 23. Nd2 {[%clk 0:00:34]}  Bb2 {[%clk 0:02:17]} 24. Nxc4 {[%clk 0:00:30]}  Bxd4 {[%clk 0:02:13]} 25. Nxe5 {[%clk 0:00:24]}  Bxe5 {[%clk 0:02:13]} 0-1


[Site "https://www.chess.com"]

[Event "Titled Tuesday Blitz May 16 Late 2023"]
[White "Adla, Diego"]
[Black "Uddin, Mubassar"]
[WhiteFideId "100072"]
[BlackFideId "2093944"]
[WhiteElo "2377"]
[BlackElo "2051"]
[Result "1-0"]
[Round "01"]
[TimeControl "180+2"]
[Date "2023.05.16"]
[WhiteClock "0:01:19"]
[BlackClock "0:00:25"]

1. c4 {[%clk 0:03:00]}  e6 {[%clk 0:02:59]} 2. g3 {[%clk 0:02:59]}  d5 {[%clk 0:03:00]} 3. Bg2 {[%clk 0:02:57]}  c5 {[%clk 0:02:59]} 4. Nf3 {[%clk 0:02:56]}  Nc6 {[%clk 0:02:59]} 5. O-O {[%clk 0:02:48]}  Nf6 {[%clk 0:02:59]} 6. d4 {[%clk 0:02:44]}  Be7 {[%clk 0:02:58]} 7. cxd5 {[%clk 0:02:44]}  exd5 {[%clk 0:02:59]} 8. dxc5 {[%clk 0:02:44]}  Bxc5 {[%clk 0:02:57]} 9. Qc2 {[%clk 0:02:44]}  Be7 {[%clk 0:02:53]} 10. Rd1 {[%clk 0:02:39]}  O-O {[%clk 0:02:52]} 11. Nc3 {[%clk 0:02:34]}  h6 {[%clk 0:02:49]} 12. e4 {[%clk 0:02:29]}  Be6 {[%clk 0:02:35]} 13. exd5 {[%clk 0:02:19]}  Nxd5 {[%clk 0:02:36]} 14. Nxd5 {[%clk 0:02:09]}  Bxd5 {[%clk 0:02:36]} 15. Rxd5 {[%clk 0:02:09]}  Qxd5 {[%clk 0:02:34]} 16. Ng5 {[%clk 0:02:04]}  Qxg2+ {[%clk 0:02:19]} 17. Kxg2 {[%clk 0:02:02]}  hxg5 {[%clk 0:02:20]} 18. Be3 {[%clk 0:02:00]}  Rac8 {[%clk 0:02:15]} 19. Rd1 {[%clk 0:01:57]}  Bf6 {[%clk 0:02:14]} 20. Qb3 {[%clk 0:01:53]}  b6 {[%clk 0:01:58]} 21. Qb5 {[%clk 0:01:46]}  Ne5 {[%clk 0:01:54]} 22. b3 {[%clk 0:01:40]}  Rfd8 {[%clk 0:01:41]} 23. Rxd8+ {[%clk 0:01:36]}  Rxd8 {[%clk 0:01:23]} 24. Bxg5 {[%clk 0:01:31]}  a6 {[%clk 0:01:09]} 25. Qe2 {[%clk 0:01:28]}  Bxg5 {[%clk 0:00:56]} 26. Qxe5 {[%clk 0:01:27]}  Bf6 {[%clk 0:00:54]} 27. Qc7 {[%clk 0:01:26]}  Rd2 {[%clk 0:00:39]} 28. Qxb6 {[%clk 0:01:24]}  Bd4 {[%clk 0:00:38]} 29. Qxa6 {[%clk 0:01:21]}  Rxf2+ {[%clk 0:00:35]} 30. Kh3 {[%clk 0:01:20]}  Rf6 {[%clk 0:00:31]} 31. Qa8+ {[%clk 0:01:18]}  Kh7 {[%clk 0:00:25]} 32. Qe4+ {[%clk 0:01:19]} 1-0


[Site "https://www.chess.com"]

[Event "Titled Tuesday Blitz May 16 Late 2023"]
[White "Wadsworth, Matthew J"]
[Black "MunichMouse"]
[WhiteFideId "415804"]
[WhiteElo "2347"]
[BlackElo "2264"]
[Result "1-0"]
[Round "01"]
[TimeControl "180+2"]
[Date "2023.05.16"]
[WhiteClock "0:00:09"]
[BlackClock "0:00:00"]

1. c4 {[%clk 0:03:00]}  c5 {[%clk 0:02:59]} 2. g3 {[%clk 0:03:00]}  g6 {[%clk 0:02:59]} 3. Bg2 {[%clk 0:03:00]}  Bg7 {[%clk 0:03:00]} 4. Nc3 {[%clk 0:03:00]}  e5 {[%clk 0:03:00]} 5. Nf3 {[%clk 0:02:56]}  Ne7 {[%clk 0:03:00]} 6. a3 {[%clk 0:02:56]}  Nbc6 {[%clk 0:02:59]} 7. Rb1 {[%clk 0:02:56]}  O-O {[%clk 0:02:52]} 8. b4 {[%clk 0:02:51]}  d6 {[%clk 0:02:52]} 9. O-O {[%clk 0:02:48]}  Rb8 {[%clk 0:02:51]} 10. d3 {[%clk 0:02:46]}  Be6 {[%clk 0:02:50]} 11. Ne1 {[%clk 0:02:44]}  b6 {[%clk 0:02:42]} 12. Nc2 {[%clk 0:02:34]}  cxb4 {[%clk 0:02:25]} 13. axb4 {[%clk 0:02:30]}  d5 {[%clk 0:02:26]} 14. b5 {[%clk 0:02:25]}  Nd4 {[%clk 0:02:17]} 15. Ne3 {[%clk 0:02:02]}  dxc4 {[%clk 0:02:04]} 16. dxc4 {[%clk 0:02:01]}  Rc8 {[%clk 0:01:55]} 17. Qa4 {[%clk 0:01:36]}  Qd7 {[%clk 0:01:52]} 18. Ba3 {[%clk 0:01:24]}  Rfd8 {[%clk 0:01:31]} 19. Rfd1 {[%clk 0:01:23]}  f5 {[%clk 0:01:20]} 20. Ned5 {[%clk 0:00:40]}  Nxd5 {[%clk 0:00:32]} 21. Bxd5 {[%clk 0:00:39]}  Bxd5 {[%clk 0:00:25]} 22. Nxd5 {[%clk 0:00:39]}  Nxe2+ {[%clk 0:00:17]} 23. Kf1 {[%clk 0:00:38]}  Nd4 {[%clk 0:00:18]} 24. Ne7+ {[%clk 0:00:38]}  Kh8 {[%clk 0:00:18]} 25. Nxc8 {[%clk 0:00:38]}  Rxc8 {[%clk 0:00:19]} 26. Bb2 {[%clk 0:00:26]}  Qb7 {[%clk 0:00:16]} 27. Bxd4 {[%clk 0:00:23]}  Qh1+ {[%clk 0:00:16]} 28. Ke2 {[%clk 0:00:22]}  Qe4+ {[%clk 0:00:17]} 29. Be3 {[%clk 0:00:22]}  f4 {[%clk 0:00:15]} 30. Qb3 {[%clk 0:00:14]}  Bh6 {[%clk 0:00:07]} 31. Qd3 {[%clk 0:00:13]}  Qxd3+ {[%clk 0:00:07]} 32. Rxd3 {[%clk 0:00:13]}  fxe3 {[%clk 0:00:08]} 33. fxe3 {[%clk 0:00:13]}  Rxc4 {[%clk 0:00:09]} 34. Rd8+ {[%clk 0:00:12]}  Kg7 {[%clk 0:00:09]} 35. Rbd1 {[%clk 0:00:12]}  Rc2+ {[%clk 0:00:06]} 36. Kf3 {[%clk 0:00:10]}  Rxh2 {[%clk 0:00:06]} 37. R1d7+ {[%clk 0:00:10]}  Kf6 {[%clk 0:00:07]} 38. Rxh7 {[%clk 0:00:09]}  Kg5 {[%clk 0:00:00]} 39. Rdh8 {[%clk 0:00:09]} 1-0


[Site "https://www.chess.com"]

[Event "Titled Tuesday Blitz May 16 Late 2023"]
[White "Saveliev, Alexei"]
[Black "mjelcic"]
[WhiteFideId "24128546"]
[WhiteElo "2271"]
[BlackElo "2256"]
[Result "1-0"]
[Round "01"]
[TimeControl "180+2"]
[Date "2023.05.16"]
[WhiteClock "0:02:41"]
[BlackClock "0:02:25"]

1. c4 {[%clk 0:02:47]}  e5 {[%clk 0:02:55]} 2. Nc3 {[%clk 0:02:47]}  Nc6 {[%clk 0:02:50]} 3. Nf3 {[%clk 0:02:47]}  f5 {[%clk 0:02:43]} 4. d4 {[%clk 0:02:47]}  e4 {[%clk 0:02:43]} 5. d5 {[%clk 0:02:46]}  exf3 {[%clk 0:02:43]} 6. dxc6 {[%clk 0:02:47]}  fxg2 {[%clk 0:02:40]} 7. Bxg2 {[%clk 0:02:48]}  bxc6 {[%clk 0:02:37]} 8. Bf4 {[%clk 0:02:48]}  Nf6 {[%clk 0:02:36]} 9. O-O {[%clk 0:02:48]}  Be7 {[%clk 0:02:30]} 10. Nb5 {[%clk 0:02:47]}  d6 {[%clk 0:02:29]} 11. Bxc6+ {[%clk 0:02:44]}  Bd7 {[%clk 0:02:29]} 12. Bxa8 {[%clk 0:02:43]}  Qxa8 {[%clk 0:02:30]} 13. Nxc7+ {[%clk 0:02:42]}  Kf7 {[%clk 0:02:26]} 14. Nxa8 {[%clk 0:02:41]}  Rxa8 {[%clk 0:02:25]} 1-0


[Site "https://www.chess.com"]

[Event "Titled Tuesday Blitz May 16 Late 2023"]
[White "Palacio,Igor Da Paz"]
[Black "Ismagilov, Damir"]
[WhiteFideId "2121140"]
[BlackFideId "34199982"]
[WhiteElo "2126"]
[BlackElo "2143"]
[Result "0-1"]
[Round "01"]
[TimeControl "180+2"]
[Date "2023.05.16"]
[WhiteClock "0:00:00"]
[BlackClock "0:00:26"]

1. e4 {[%clk 0:02:59]}  g6 {[%clk 0:02:58]} 2. d3 {[%clk 0:02:56]}  Bg7 {[%clk 0:02:57]} 3. g3 {[%clk 0:02:55]}  b6 {[%clk 0:02:55]} 4. Bg2 {[%clk 0:02:55]}  Bb7 {[%clk 0:02:55]} 5. Nf3 {[%clk 0:02:55]}  d6 {[%clk 0:02:55]} 6. O-O {[%clk 0:02:54]}  Nf6 {[%clk 0:02:55]} 7. Re1 {[%clk 0:02:45]}  O-O {[%clk 0:02:55]} 8. Nbd2 {[%clk 0:02:44]}  Nbd7 {[%clk 0:02:55]} 9. c3 {[%clk 0:02:40]}  c5 {[%clk 0:02:52]} 10. a3 {[%clk 0:02:35]}  e5 {[%clk 0:02:52]} 11. b4 {[%clk 0:02:33]}  a5 {[%clk 0:02:51]} 12. b5 {[%clk 0:02:29]}  d5 {[%clk 0:02:43]} 13. Qc2 {[%clk 0:02:19]}  c4 {[%clk 0:02:33]} 14. dxc4 {[%clk 0:02:05]}  dxe4 {[%clk 0:02:32]} 15. Ng5 {[%clk 0:02:04]}  Nc5 {[%clk 0:02:15]} 16. Ndxe4 {[%clk 0:02:01]}  Qc7 {[%clk 0:01:59]} 17. Nxc5 {[%clk 0:01:58]}  bxc5 {[%clk 0:01:55]} 18. Ne4 {[%clk 0:01:52]}  Nxe4 {[%clk 0:01:40]} 19. Bxe4 {[%clk 0:01:51]}  f5 {[%clk 0:01:41]} 20. Bd5+ {[%clk 0:01:50]}  Kh8 {[%clk 0:01:41]} 21. a4 {[%clk 0:01:46]}  Rad8 {[%clk 0:01:38]} 22. Rd1 {[%clk 0:01:44]}  Rd7 {[%clk 0:01:28]} 23. Ba3 {[%clk 0:01:23]}  Bxd5 {[%clk 0:01:17]} 24. cxd5 {[%clk 0:01:21]}  e4 {[%clk 0:01:17]} 25. Rab1 {[%clk 0:01:15]}  Rfd8 {[%clk 0:01:11]} 26. c4 {[%clk 0:01:14]}  Bd4 {[%clk 0:01:06]} 27. Bb2 {[%clk 0:00:58]}  Kg8 {[%clk 0:00:40]} 28. Bxd4 {[%clk 0:00:49]}  cxd4 {[%clk 0:00:41]} 29. Rxd4 {[%clk 0:00:50]}  Qc5 {[%clk 0:00:41]} 30. Qb2 {[%clk 0:00:40]}  Re7 {[%clk 0:00:37]} 31. Re1 {[%clk 0:00:37]}  Rde8 {[%clk 0:00:34]} 32. Re3 {[%clk 0:00:35]}  g5 {[%clk 0:00:34]} 33. Qc3 {[%clk 0:00:04]}  f4 {[%clk 0:00:33]} 34. Re1 {[%clk 0:00:04]}  f3 {[%clk 0:00:26]} 35. Re3 {[%clk 0:00:02]}  Qc8 {[%clk 0:00:26]} 36. Qc2 {[%clk 0:00:00]}  Qh3 {[%clk 0:00:26]} 0-1


[Site "https://www.chess.com"]

[Event "Titled Tuesday Blitz May 16 Late 2023"]
[White "Krasteva, Beloslava"]
[Black "Bernabeu Lopez, Carlos Javier"]
[WhiteFideId "2922029"]
[BlackFideId "2235366"]
[WhiteElo "2187"]
[BlackElo "2344"]
[Result "0-1"]
[Round "01"]
[TimeControl "180+2"]
[Date "2023.05.16"]
[WhiteClock "0:00:02"]
[BlackClock "0:01:52"]

1. d4 {[%clk 0:02:57]}  Nf6 {[%clk 0:02:59]} 2. Nf3 {[%clk 0:02:53]}  g6 {[%clk 0:03:00]} 3. c4 {[%clk 0:02:51]}  Bg7 {[%clk 0:03:00]} 4. Nc3 {[%clk 0:02:51]}  O-O {[%clk 0:03:01]} 5. e4 {[%clk 0:02:50]}  d6 {[%clk 0:03:01]} 6. Be2 {[%clk 0:02:42]}  Bg4 {[%clk 0:03:02]} 7. Be3 {[%clk 0:02:38]}  Nfd7 {[%clk 0:03:02]} 8. h3 {[%clk 0:02:33]}  Bxf3 {[%clk 0:03:01]} 9. Bxf3 {[%clk 0:02:34]}  Nc6 {[%clk 0:02:59]} 10. d5 {[%clk 0:02:29]}  Na5 {[%clk 0:02:59]} 11. Be2 {[%clk 0:02:25]}  Bxc3+ {[%clk 0:02:59]} 12. bxc3 {[%clk 0:02:25]}  e5 {[%clk 0:03:00]} 13. O-O {[%clk 0:02:15]}  Re8 {[%clk 0:02:57]} 14. f4 {[%clk 0:01:46]}  exf4 {[%clk 0:02:58]} 15. Rxf4 {[%clk 0:01:46]}  b6 {[%clk 0:02:55]} 16. Bd4 {[%clk 0:01:41]}  Ne5 {[%clk 0:02:54]} 17. Qf1 {[%clk 0:01:28]}  Qe7 {[%clk 0:02:45]} 18. Qf2 {[%clk 0:01:22]}  Rf8 {[%clk 0:02:42]} 19. Rf1 {[%clk 0:01:18]}  Rae8 {[%clk 0:02:37]} 20. h4 {[%clk 0:01:04]}  c5 {[%clk 0:02:34]} 21. Be3 {[%clk 0:00:56]}  Naxc4 {[%clk 0:02:31]} 22. Bc1 {[%clk 0:00:52]}  f6 {[%clk 0:02:14]} 23. h5 {[%clk 0:00:38]}  g5 {[%clk 0:02:07]} 24. Rf5 {[%clk 0:00:39]}  h6 {[%clk 0:02:06]} 25. Qg3 {[%clk 0:00:32]}  Rf7 {[%clk 0:02:03]} 26. Bf4 {[%clk 0:00:24]}  Ref8 {[%clk 0:02:02]} 27. Bc1 {[%clk 0:00:15]}  Kh8 {[%clk 0:02:01]} 28. Kh2 {[%clk 0:00:15]}  b5 {[%clk 0:02:02]} 29. Kg1 {[%clk 0:00:14]}  a5 {[%clk 0:02:02]} 30. Kh2 {[%clk 0:00:13]}  b4 {[%clk 0:02:02]} 31. cxb4 {[%clk 0:00:12]}  axb4 {[%clk 0:02:03]} 32. Qb3 {[%clk 0:00:11]}  Nb6 {[%clk 0:02:03]} 33. Bb2 {[%clk 0:00:08]}  Nbd7 {[%clk 0:02:04]} 34. a3 {[%clk 0:00:08]}  Rb8 {[%clk 0:02:03]} 35. Qa4 {[%clk 0:00:06]}  bxa3 {[%clk 0:02:02]} 36. Qxa3 {[%clk 0:00:07]}  Kg7 {[%clk 0:02:01]} 37. Qc3 {[%clk 0:00:06]}  Rff8 {[%clk 0:02:01]} 38. Qa3 {[%clk 0:00:05]}  Ra8 {[%clk 0:02:00]} 39. Qg3 {[%clk 0:00:04]}  Rfb8 {[%clk 0:01:59]} 40. Bxe5 {[%clk 0:00:04]}  dxe5 {[%clk 0:01:58]} 41. Qc3 {[%clk 0:00:03]}  Qd6 {[%clk 0:01:57]} 42. Bc4 {[%clk 0:00:02]}  Rb4 {[%clk 0:01:56]} 43. Qc2 {[%clk 0:00:02]}  Ra3 {[%clk 0:01:55]} 44. Qc1 {[%clk 0:00:02]}  Raa4 {[%clk 0:01:52]} 45. Qc2 {[%clk 0:00:02]}  Rxc4 {[%clk 0:01:52]} 46. Qd3 {[%clk 0:00:03]}  Rxe4 {[%clk 0:01:51]} 47. Qf3 {[%clk 0:00:02]}  Rh4+ {[%clk 0:01:51]} 48. Kg1 {[%clk 0:00:02]}  Rhf4 {[%clk 0:01:52]} 49. Rxf4 {[%clk 0:00:02]}  Rxf4 {[%clk 0:01:53]} 50. Qb3 {[%clk 0:00:02]}  Rxf1+ {[%clk 0:01:51]} 51. Kxf1 {[%clk 0:00:02]}  e4 {[%clk 0:01:52]} 0-1


[Site "https://www.chess.com"]